[Event "Hungarian Rapid-ch 2022"]
[Site "Ajka"]
[Date "2022.07.17"]
[Round "12.16"]
[White "Krstulovic, Alex"]
[Black "Tancsa, Tamas"]
[Result "1-0"]
[ECO "E70"]
[WhiteElo "2413"]
[BlackElo "2103"]
[Annotator "ChessBase"]
[PlyCount "77"]
[EventDate "2022.07.15"]
[EventType "swiss"]
[EventCountry "HUN"]
[SourceTitle "playchess.com"]
[Source "ChessBase"]
[SourceQuality "1"]
[TimeControl "900+10"]

1. d4 {[%emt 0:00:13]} Nf6 {[%emt 0:00:13]} 2. c4 {[%emt 0:00:01]} g6 {[%emt 0:00:02]} 3. Nc3 {[%emt 0:00:01]} Bg7 {[%emt 0:00:01]} 4. e4 {[%emt 0:00:01]} d6 {[%emt 0:00:01]} 5. Nge2 {[%emt 0:00:01]} O-O {[%emt 0:00:20]} 6. Ng3 {[%emt 0:00:01]} e5 {[%emt 0:00:18]} 7. d5 {[%emt 0:00:02]} Nbd7 {[%emt 0:00:04]} 8. h4 {[%emt 0:00:02]} h6 {[%emt 0:00:25]} 9. Be3 {[%emt 0:00:32]} a5 {[%emt 0:00:35]} 10. Be2 {[%emt 0:00:04]} Nc5 {[%emt 0:00:07]} 11. Qd2 {[%emt 0:00:03]} Kh7 {[%emt 0:00:02]} 12. h5 {[%emt 0:00:06]} g5 {[%emt 0:00:07]} 13. f3 {[%emt 0:00:01]} b6 {[%emt 0:00:31]} 14. Bd1 {[%emt 0:00:18]} Bd7 {[%emt 0:00:36]} 15. b3 {[%emt 0:00:08]} Ng8 {[%emt 0:00:08]} 16. Bc2 {[%emt 0:00:02]} Ne7 {[%emt 0:00:09]} 17. O-O {[%emt 0:02:07]} Kh8 {[%emt 0:00:06]} 18. a3 {[%emt 0:00:16]} Na6 {[%emt 0:00:11]} 19. Rab1 {[%emt 0:00:23]} Qc8 {[%emt 0:01:36]} 20. b4 {[%emt 0:00:14]} axb4 {[%emt 0:00:02]} 21. axb4 {[%emt 0:00:01]} f5 {[%emt 0:00:02]} 22. exf5 {[%emt 0:00:16]} Nxf5 {[%emt 0:00:02]} 23. Nxf5 {[%emt 0:00:15]} Bxf5 {[%emt 0:00:01]} 24. Bxf5 {[%emt 0:00:02]} Qxf5 {[%emt 0:00:04]} 25. g4 {[%emt 0:00:04]} Qd7 {[%emt 0:01:15]} 26. Ne4 {[%emt 0:00:04]} Rf7 {[%emt 0:01:18]} 27. Kg2 {[%emt 0:00:36]} Raf8 {[%emt 0:00:01]} 28. Kg3 {[%emt 0:00:01]} c5 {[%emt 0:02:03]} 29. dxc6 {[%emt 0:00:50]} Qxc6 {[%emt 0:04:20]} 30. b5 {[%emt 0:00:01]} Qxc4 {[%emt 0:00:41]} 31. Nxd6 {[%emt 0:00:24]} Qe6 {[%emt 0:01:47]} 32. Nxf7+ {[%emt 0:00:02]} Rxf7 {[%emt 0:00:01]} 33. bxa6 {[%emt 0:00:02]} e4 {[%emt 0:00:01]} 34. Rxb6 {[%emt 0:00:51]} Qc4 {[%emt 0:00:27]} 35. Qd1 {[%emt 0:01:32]} exf3 {[%emt 0:00:27]} 36. Rxf3 {[%emt 0:00:15]} Be5+ {[%emt 0:00:02]} 37. Kh3 {[%emt 0:00:01]} Qa2 {[%emt 0:00:52]} 38. Qd8+ {[%emt 0:00:15]} Kg7 {[%emt 0:00:01]} 39. Rg6+ 1-0

[Event "Hungarian Rapid-ch 2022"]
[Site "Ajka"]
[Date "2022.07.17"]
[Round "12.17"]
[White "Deak, Sandor"]
[Black "Meszaros, Tamas"]
[Result "0-1"]
[ECO "E11"]
[WhiteElo "2264"]
[BlackElo "2368"]
[Annotator "ChessBase"]
[PlyCount "60"]
[EventDate "2022.07.15"]
[EventType "swiss"]
[EventCountry "HUN"]
[SourceTitle "playchess.com"]
[Source "ChessBase"]
[SourceQuality "1"]
[TimeControl "900+10"]

1. d4 {[%emt 0:00:13]} Nf6 {[%emt 0:00:11]} 2. c4 {[%emt 0:00:01]} e6 {[%emt 0:00:01]} 3. Nf3 {[%emt 0:00:02]} Bb4+ {[%emt 0:00:20]} 4. Nbd2 {[%emt 0:00:17]} O-O {[%emt 0:00:03]} 5. e3 {[%emt 0:00:04]} d6 {[%emt 0:02:04]} 6. a3 {[%emt 0:03:18]} Bxd2+ {[%emt 0:00:07]} 7. Bxd2 {[%emt 0:00:05]} Nbd7 {[%emt 0:00:41]} 8. Qc2 {[%emt 0:01:26]} e5 {[%emt 0:00:36]} 9. dxe5 {[%emt 0:01:00]} dxe5 {[%emt 0:00:02]} 10. c5 {[%emt 0:01:09]} e4 {[%emt 0:03:31]} 11. Nd4 {[%emt 0:00:09]} Ne5 {[%emt 0:00:03]} 12. h3 {[%emt 0:00:10]} c6 {[%emt 0:00:55]} 13. Be2 {[%emt 0:00:13]} Qe7 {[%emt 0:00:27]} 14. Rc1 {[%emt 0:00:05]} Ng6 {[%emt 0:02:16]} 15. O-O {[%emt 0:01:02]} Qe5 {[%emt 0:00:19]} 16. f4 {[%emt 0:00:03]} exf3 {[%emt 0:00:05]} 17. Nxf3 {[%emt 0:01:13]} Qe7 {[%emt 0:00:05]} 18. Bd3 {[%emt 0:00:05]} Re8 {[%emt 0:01:05]} 19. Rce1 {[%emt 0:00:53]} Ne4 {[%emt 0:00:12]} 20. Bxe4 {[%emt 0:03:02]} Qxe4 {[%emt 0:00:01]} 21. Qxe4 {[%emt 0:01:26]} Rxe4 {[%emt 0:00:02]} 22. Bc3 {[%emt 0:00:07]} Be6 {[%emt 0:02:08]} 23. Ng5 {[%emt 0:00:09]} Rc4 {[%emt 0:00:09]} 24. Nxe6 {[%emt 0:00:14]} fxe6 {[%emt 0:00:02]} 25. Rd1 {[%emt 0:00:02]} Nf8 {[%emt 0:00:51]} 26. Rf3 {[%emt 0:02:27]} Rxc5 {[%emt 0:00:18]} 27. e4 {[%emt 0:00:23]} Rc4 {[%emt 0:00:31]} 28. Rdf1 {[%emt 0:00:07]} Rxe4 {[%emt 0:01:25]} 29. Rf7 {[%emt 0:00:01]} e5 {[%emt 0:00:07]} 30. Rxb7 {[%emt 0:00:01]} Ne6 {[%emt 0:00:55]} 0-1

[Event "Hungarian Rapid-ch 2022"]
[Site "Ajka"]
[Date "2022.07.17"]
[Round "12.18"]
[White "Gombocz, Ferenc Jr."]
[Black "Leviczky, Tibor"]
[Result "1/2-1/2"]
[ECO "A30"]
[WhiteElo "2229"]
[BlackElo "2281"]
[Annotator "ChessBase"]
[PlyCount "100"]
[EventDate "2022.07.15"]
[EventType "swiss"]
[EventCountry "HUN"]
[SourceTitle "playchess.com"]
[Source "ChessBase"]
[SourceQuality "1"]
[TimeControl "900+10"]

1. c4 {[%emt 0:00:12]} c5 {[%emt 0:00:17]} 2. g3 {[%emt 0:00:03]} Nf6 {[%emt 0:00:10]} 3. Bg2 {[%emt 0:00:02]} d5 {[%emt 0:00:02]} 4. cxd5 {[%emt 0:00:02]} Nxd5 {[%emt 0:00:01]} 5. Nf3 {[%emt 0:00:06]} Nc6 {[%emt 0:00:13]} 6. d4 {[%emt 0:00:16]} Nf6 {[%emt 0:02:13]} 7. O-O {[%emt 0:02:36]} e6 {[%emt 0:04:22]} 8. Ne5 {[%emt 0:01:07]} Bd7 {[%emt 0:00:41]} 9. Nxd7 {[%emt 0:01:00]} Qxd7 {[%emt 0:00:07]} 10. dxc5 {[%emt 0:00:03]} Bxc5 {[%emt 0:00:16]} 11. Qxd7+ {[%emt 0:00:11]} Kxd7 {[%emt 0:00:07]} 12. Rd1+ {[%emt 0:00:03]} Ke7 {[%emt 0:00:03]} 13. Bxc6 {[%emt 0:00:24]} bxc6 {[%emt 0:00:02]} 14. Nc3 {[%emt 0:01:13]} Rhd8 {[%emt 0:00:53]} 15. Bg5 {[%emt 0:00:22]} h6 {[%emt 0:00:18]} 16. Bxf6+ {[%emt 0:00:21]} gxf6 {[%emt 0:00:05]} 17. e3 {[%emt 0:00:07]} f5 {[%emt 0:01:05]} 18. Kf1 {[%emt 0:00:47]} Bd6 {[%emt 0:00:55]} 19. Ke2 {[%emt 0:00:34]} Rab8 {[%emt 0:00:53]} 20. b3 {[%emt 0:00:38]} Be5 {[%emt 0:02:18]} 21. Rxd8 {[%emt 0:00:06]} Rxd8 {[%emt 0:00:05]} 22. Rc1 {[%emt 0:00:04]} Bxc3 {[%emt 0:00:44]} 23. Rxc3 {[%emt 0:00:03]} Rc8 {[%emt 0:00:19]} 24. Rc4 {[%emt 0:00:08]} Kd6 {[%emt 0:00:25]} 25. Rh4 {[%emt 0:00:06]} Rh8 {[%emt 0:00:01]} 26. Ra4 {[%emt 0:00:23]} Ra8 {[%emt 0:00:02]} 27. Kd3 {[%emt 0:00:21]} e5 {[%emt 0:00:33]} 28. Rh4 {[%emt 0:01:17]} Rh8 {[%emt 0:00:03]} 29. Rh5 {[%emt 0:01:07]} Ke6 {[%emt 0:00:33]} 30. Kc4 {[%emt 0:00:03]} f6 {[%emt 0:00:05]} 31. Kc5 {[%emt 0:00:25]} Rd8 {[%emt 0:00:02]} 32. Kxc6 {[%emt 0:00:41]} Rd2 {[%emt 0:00:05]} 33. a4 {[%emt 0:00:21]} Rb2 {[%emt 0:00:38]} 34. Rxh6 {[%emt 0:00:11]} Rxb3 {[%emt 0:00:01]} 35. Rh7 {[%emt 0:00:07]} a5 {[%emt 0:00:12]} 36. Ra7 {[%emt 0:00:31]} Rb2 {[%emt 0:00:02]} 37. Rxa5 {[%emt 0:00:21]} Rxf2 {[%emt 0:00:02]} 38. h4 {[%emt 0:00:34]} Rf3 {[%emt 0:00:05]} 39. Ra8 {[%emt 0:00:05]} Rxg3 {[%emt 0:00:13]} 40. a5 {[%emt 0:00:28]} f4 {[%emt 0:00:25]} 41. exf4 {[%emt 0:01:21]} exf4 {[%emt 0:00:02]} 42. a6 {[%emt 0:00:13]} Ra3 {[%emt 0:00:08]} 43. Kb7 {[%emt 0:01:51]} f3 {[%emt 0:01:05]} 44. Re8+ {[%emt 0:00:08]} Kf5 {[%emt 0:00:01]} 45. Re1 {[%emt 0:00:18]} Kg4 {[%emt 0:00:18]} 46. Rh1 {[%emt 0:00:28]} f2 {[%emt 0:00:46]} 47. a7 {[%emt 0:00:48]} Rb3+ {[%emt 0:00:27]} 48. Kc7 {[%emt 0:00:05]} Ra3 {[%emt 0:00:04]} 49. Kb7 {[%emt 0:00:04]} Rb3+ {[%emt 0:00:03]} 50. Kc7 {[%emt 0:00:06]} Ra3 {[%emt 0:00:02]} 1/2-1/2

[Event "Hungarian Rapid-ch 2022"]
[Site "Ajka"]
[Date "2022.07.17"]
[Round "12.19"]
[White "Lazarne Vajda, Szidonia"]
[Black "Gaal, Zsoka"]
[Result "1-0"]
[ECO "D05"]
[WhiteElo "2313"]
[BlackElo "2313"]
[Annotator "ChessBase"]
[PlyCount "88"]
[EventDate "2022.07.15"]
[EventType "swiss"]
[EventCountry "HUN"]
[SourceTitle "playchess.com"]
[Source "ChessBase"]
[SourceQuality "1"]
[TimeControl "900+10"]

1. d4 {[%emt 0:00:12]} Nf6 {[%emt 0:00:17]} 2. Nf3 {[%emt 0:00:12]} d5 {[%emt 0:00:02]} 3. e3 {[%emt 0:00:37]} e6 {[%emt 0:00:15]} 4. Bd3 {[%emt 0:00:09]} b6 {[%emt 0:00:24]} 5. O-O {[%emt 0:00:26]} Bb7 {[%emt 0:00:03]} 6. c4 {[%emt 0:00:57]} Bd6 {[%emt 0:00:14]} 7. Nc3 {[%emt 0:00:07]} a6 {[%emt 0:00:56]} 8. cxd5 {[%emt 0:00:59]} exd5 {[%emt 0:00:55]} 9. Ne5 {[%emt 0:00:24]} O-O {[%emt 0:00:09]} 10. f4 {[%emt 0:00:14]} c5 {[%emt 0:00:37]} 11. Bd2 {[%emt 0:01:25]} Nc6 {[%emt 0:00:26]} 12. Ne2 {[%emt 0:00:02]} Ne4 {[%emt 0:01:11]} 13. Bxe4 {[%emt 0:01:19]} dxe4 {[%emt 0:00:04]} 14. Nxc6 {[%emt 0:00:19]} Bxc6 {[%emt 0:00:02]} 15. Bc3 {[%emt 0:00:14]} Be7 {[%emt 0:01:24]} 16. dxc5 {[%emt 0:01:49]} bxc5 {[%emt 0:00:02]} 17. Ng3 {[%emt 0:02:09]} Qxd1 {[%emt 0:01:19]} 18. Rfxd1 {[%emt 0:00:13]} f5 {[%emt 0:01:33]} 19. Rac1 {[%emt 0:00:19]} Rac8 {[%emt 0:00:40]} 20. Be5 {[%emt 0:00:27]} g6 {[%emt 0:01:27]} 21. Nf1 {[%emt 0:03:10]} Rfd8 {[%emt 0:00:20]} 22. Rxd8+ {[%emt 0:00:43]} Rxd8 {[%emt 0:00:02]} 23. b4 {[%emt 0:00:25]} Rd5 {[%emt 0:00:39]} 24. bxc5 {[%emt 0:00:35]} Rxc5 {[%emt 0:00:05]} 25. Rd1 {[%emt 0:01:02]} Rc2 {[%emt 0:01:00]} 26. Nd2 {[%emt 0:00:15]} Bc5 {[%emt 0:00:31]} 27. Nf1 {[%emt 0:00:35]} Bb5 {[%emt 0:01:03]} 28. a4 {[%emt 0:00:07]} Bd3 {[%emt 0:00:26]} 29. Ra1 {[%emt 0:00:12]} Kf7 {[%emt 0:00:20]} 30. h3 {[%emt 0:00:01]} Ke6 {[%emt 0:00:07]} 31. g4 {[%emt 0:00:03]} Bxf1 {[%emt 0:00:36]} 32. Kxf1 {[%emt 0:00:01]} Bxe3 {[%emt 0:00:02]} 33. Ra3 {[%emt 0:00:11]} Rf2+ {[%emt 0:00:34]} 34. Ke1 {[%emt 0:00:04]} Rf3 {[%emt 0:00:02]} 35. Rc3 {[%emt 0:00:21]} Bf2+ {[%emt 0:00:26]} 36. Ke2 {[%emt 0:00:04]} Rxc3 {[%emt 0:00:05]} 37. Bxc3 {[%emt 0:00:02]} Bc5 {[%emt 0:00:22]} 38. Kd1 {[%emt 0:00:44]} Kd5 {[%emt 0:00:03]} 39. Kc2 {[%emt 0:00:01]} Be3 {[%emt 0:00:49]} 40. Be5 {[%emt 0:00:07]} Bd4 {[%emt 0:00:01]} 41. Bc7 {[%emt 0:00:05]} Kc4 {[%emt 0:00:01]} 42. Ba5 {[%emt 0:00:07]} Be3 {[%emt 0:00:03]} 43. Bc7 {[%emt 0:00:08]} Kb4 {[%emt 0:00:16]} 44. a5 {[%emt 0:00:03]} Kc4 {[%emt 0:00:09]} 1-0

[Event "Hungarian Rapid-ch 2022"]
[Site "Ajka"]
[Date "2022.07.17"]
[Round "12.20"]
[White "Kassay, Krisztian"]
[Black "Egresi, Mate"]
[Result "0-1"]
[ECO "D00"]
[WhiteElo "2157"]
[BlackElo "2376"]
[Annotator "ChessBase"]
[PlyCount "64"]
[EventDate "2022.07.15"]
[EventType "swiss"]
[EventCountry "HUN"]
[SourceTitle "playchess.com"]
[Source "ChessBase"]
[SourceQuality "1"]
[TimeControl "900+10"]

1. d4 {[%emt 0:00:14]} d5 {[%emt 0:00:11]} 2. Bf4 {[%emt 0:00:04]} Nf6 {[%emt 0:00:01]} 3. e3 {[%emt 0:00:07]} c5 {[%emt 0:00:01]} 4. c3 {[%emt 0:00:12]} Nc6 {[%emt 0:00:08]} 5. Nf3 {[%emt 0:00:03]} Nh5 {[%emt 0:00:02]} 6. Bg3 {[%emt 0:00:15]} Nxg3 {[%emt 0:00:06]} 7. hxg3 {[%emt 0:00:02]} cxd4 {[%emt 0:00:06]} 8. exd4 {[%emt 0:00:04]} g6 {[%emt 0:00:05]} 9. Bd3 {[%emt 0:00:13]} Bg7 {[%emt 0:00:03]} 10. Nbd2 {[%emt 0:00:13]} O-O {[%emt 0:00:24]} 11. b4 {[%emt 0:02:48]} e5 {[%emt 0:00:47]} 12. b5 {[%emt 0:01:40]} e4 {[%emt 0:01:03]} 13. bxc6 {[%emt 0:00:24]} exd3 {[%emt 0:00:10]} 14. Nb3 {[%emt 0:01:43]} Re8+ {[%emt 0:01:02]} 15. Kf1 {[%emt 0:00:24]} bxc6 {[%emt 0:00:05]} 16. Qxd3 {[%emt 0:00:15]} Bf5 {[%emt 0:00:13]} 17. Qd2 {[%emt 0:00:30]} Qb6 {[%emt 0:01:00]} 18. Kg1 {[%emt 0:03:17]} Qb5 {[%emt 0:00:55]} 19. Qf4 {[%emt 0:00:16]} Qd3 {[%emt 0:03:34]} 20. Kh2 {[%emt 0:01:50]} Qxc3 {[%emt 0:01:01]} 21. Rhc1 {[%emt 0:02:01]} Qb2 {[%emt 0:00:10]} 22. Rxc6 {[%emt 0:01:29]} Qxf2 {[%emt 0:00:40]} 23. Ne5 {[%emt 0:00:12]} Qe2 {[%emt 0:00:50]} 24. Nf3 {[%emt 0:00:40]} Re4 {[%emt 0:03:25]} 25. Qd6 {[%emt 0:00:05]} Qf2 {[%emt 0:00:01]} 26. Qxd5 {[%emt 0:00:12]} Re2 {[%emt 0:00:07]} 27. Nh4 {[%emt 0:00:06]} Be4 {[%emt 0:00:11]} 28. Qc5 {[%emt 0:00:18]} Bxg2 {[%emt 0:00:44]} 29. d5 {[%emt 0:00:08]} Bxd5+ {[%emt 0:00:42]} 30. Qxf2 {[%emt 0:00:02]} Rxf2+ {[%emt 0:00:01]} 31. Kg1 {[%emt 0:00:01]} Bxc6 {[%emt 0:00:07]} 32. Kxf2 {[%emt 0:00:06]} Bxa1 {[%emt 0:00:01]} 0-1

[Event "Hungarian Rapid-ch 2022"]
[Site "Ajka"]
[Date "2022.07.17"]
[Round "12.21"]
[White "Papp, Bence"]
[Black "Martini, Balazs"]
[Result "0-1"]
[ECO "A50"]
[WhiteElo "2244"]
[BlackElo "2348"]
[Annotator "ChessBase"]
[PlyCount "110"]
[EventDate "2022.07.15"]
[EventType "swiss"]
[EventCountry "HUN"]
[SourceTitle "playchess.com"]
[Source "ChessBase"]
[SourceQuality "1"]
[TimeControl "900+10"]

1. d4 {[%emt 0:00:12]} Nf6 {[%emt 0:00:32]} 2. c4 {[%emt 0:00:02]} g6 {[%emt 0:00:02]} 3. h4 {[%emt 0:00:01]} Bg7 {[%emt 0:00:54]} 4. Nc3 {[%emt 0:00:05]} d6 {[%emt 0:00:32]} 5. e4 {[%emt 0:00:03]} e5 {[%emt 0:01:46]} 6. d5 {[%emt 0:00:08]} a5 {[%emt 0:00:24]} 7. Be2 {[%emt 0:00:13]} Na6 {[%emt 0:00:56]} 8. h5 {[%emt 0:00:11]} Nxh5 {[%emt 0:02:38]} 9. Bxh5 {[%emt 0:00:05]} gxh5 {[%emt 0:00:02]} 10. Rxh5 {[%emt 0:04:32]} Qf6 {[%emt 0:02:44]} 11. Be3 {[%emt 0:00:26]} Qg6 {[%emt 0:01:14]} 12. Rg5 {[%emt 0:00:11]} Qf6 {[%emt 0:00:02]} 13. Rg3 {[%emt 0:00:09]} Bh6 {[%emt 0:01:15]} 14. Qd2 {[%emt 0:02:08]} Bxe3 {[%emt 0:00:56]} 15. Qxe3 {[%emt 0:00:01]} Bd7 {[%emt 0:01:36]} 16. O-O-O {[%emt 0:00:08]} h5 {[%emt 0:00:09]} 17. Nge2 {[%emt 0:02:54]} h4 {[%emt 0:00:11]} 18. Qg5 {[%emt 0:00:58]} Qxg5+ {[%emt 0:00:11]} 19. Rxg5 {[%emt 0:00:01]} Ke7 {[%emt 0:00:06]} 20. Rh1 {[%emt 0:00:25]} Kf6 {[%emt 0:00:20]} 21. Rf5+ {[%emt 0:01:19]} Bxf5 {[%emt 0:00:01]} 22. exf5 {[%emt 0:00:01]} Kxf5 {[%emt 0:00:09]} 23. f4 {[%emt 0:00:05]} e4 {[%emt 0:01:06]} 24. Kd2 {[%emt 0:00:31]} Rag8 {[%emt 0:00:10]} 25. Rh2 {[%emt 0:00:01]} Nc5 {[%emt 0:00:51]} 26. Ke3 {[%emt 0:00:02]} Re8 {[%emt 0:00:10]} 27. Nb5 {[%emt 0:00:34]} Re7 {[%emt 0:00:05]} 28. g3 {[%emt 0:00:20]} h3 {[%emt 0:00:11]} 29. Nbd4+ {[%emt 0:01:53]} Kg4 {[%emt 0:00:12]} 30. b3 {[%emt 0:01:14]} Nd7 {[%emt 0:00:18]} 31. Nc2 {[%emt 0:01:03]} Nf6 {[%emt 0:00:12]} 32. Kd4 {[%emt 0:00:10]} c5+ {[%emt 0:00:17]} 33. dxc6 {[%emt 0:00:03]} bxc6 {[%emt 0:00:01]} 34. Ne3+ {[%emt 0:00:05]} Kf3 {[%emt 0:00:13]} 35. Nf5 {[%emt 0:00:10]} c5+ {[%emt 0:00:06]} 36. Kc3 {[%emt 0:00:05]} Rd7 {[%emt 0:00:22]} 37. Kd2 {[%emt 0:00:33]} e3+ {[%emt 0:00:04]} 38. Nxe3 {[%emt 0:00:05]} Ne4+ {[%emt 0:00:01]} 39. Kd3 {[%emt 0:00:01]} Nf2+ {[%emt 0:00:12]} 40. Kd2 {[%emt 0:00:04]} Ne4+ {[%emt 0:00:05]} 41. Kd3 {[%emt 0:00:01]} Nf2+ {[%emt 0:00:06]} 42. Kd2 {[%emt 0:00:00]} Ng4 {[%emt 0:00:27]} 43. Ng1+ {[%emt 0:00:34]} Kxg3 {[%emt 0:00:01]} 44. Nf1+ {[%emt 0:00:01]} Kxf4 {[%emt 0:00:05]} 45. Nxh3+ {[%emt 0:00:22]} Kf5 {[%emt 0:00:06]} 46. Ng3+ {[%emt 0:00:02]} Kf6 {[%emt 0:00:14]} 47. Rh1 {[%emt 0:00:10]} d5 {[%emt 0:00:21]} 48. cxd5 {[%emt 0:00:01]} Rxd5+ {[%emt 0:00:04]} 49. Kc3 {[%emt 0:00:01]} Ne3 {[%emt 0:00:18]} 50. Kb2 {[%emt 0:00:48]} Ke7 {[%emt 0:00:11]} 51. Ka3 {[%emt 0:00:16]} Rd3 {[%emt 0:00:13]} 52. Ne4 {[%emt 0:00:09]} Nc2+ {[%emt 0:00:06]} 53. Kb2 {[%emt 0:00:03]} Nb4 {[%emt 0:00:14]} 54. Re1 {[%emt 0:00:12]} Rhxh3 {[%emt 0:00:07]} 55. Nxc5+ {[%emt 0:00:03]} Kf8 {[%emt 0:00:05]} 0-1

[Event "Hungarian Rapid-ch 2022"]
[Site "Ajka"]
[Date "2022.07.17"]
[Round "12.22"]
[White "Juhasz, Zoltan"]
[Black "Kiss, Pal"]
[Result "0-1"]
[ECO "B23"]
[WhiteElo "1985"]
[BlackElo "2243"]
[Annotator "ChessBase"]
[PlyCount "56"]
[EventDate "2022.07.15"]
[EventType "swiss"]
[EventCountry "HUN"]
[SourceTitle "playchess.com"]
[Source "ChessBase"]
[SourceQuality "1"]
[TimeControl "900+10"]

1. e4 {[%emt 0:00:11]} c5 {[%emt 0:00:13]} 2. Nc3 {[%emt 0:00:02]} e6 {[%emt 0:00:06]} 3. Nge2 {[%emt 0:00:01]} Nc6 {[%emt 0:00:13]} 4. g3 {[%emt 0:00:56]} d5 {[%emt 0:00:46]} 5. d3 {[%emt 0:02:43]} d4 {[%emt 0:00:38]} 6. Nb1 {[%emt 0:00:07]} e5 {[%emt 0:00:04]} 7. Bg2 {[%emt 0:00:18]} Be6 {[%emt 0:00:15]} 8. b3 {[%emt 0:00:46]} Bd6 {[%emt 0:00:31]} 9. O-O {[%emt 0:00:09]} Nge7 {[%emt 0:00:29]} 10. f4 f6 {[%emt 0:00:04]} 11. f5 {[%emt 0:00:55]} Bf7 {[%emt 0:00:03]} 12. a4 {[%emt 0:01:32]} a6 {[%emt 0:00:27]} 13. Na3 {[%emt 0:00:10]} b5 {[%emt 0:01:20]} 14. Bd2 {[%emt 0:00:44]} Rb8 {[%emt 0:00:12]} 15. axb5 {[%emt 0:01:06]} axb5 {[%emt 0:00:02]} 16. g4 {[%emt 0:00:09]} h6 {[%emt 0:02:30]} 17. h4 {[%emt 0:00:24]} Nc8 {[%emt 0:00:56]} 18. Qe1 {[%emt 0:00:59]} Be7 {[%emt 0:00:34]} 19. Qg3 {[%emt 0:01:59]} Nd6 {[%emt 0:00:16]} 20. Rfb1 {[%emt 0:02:34]} Ra8 {[%emt 0:00:42]} 21. h5 {[%emt 0:01:13]} Ra7 {[%emt 0:01:37]} 22. Qe1 {[%emt 0:00:01]} O-O {[%emt 0:01:16]} 23. Rb2 {[%emt 0:00:31]} Qa8 {[%emt 0:00:23]} 24. Rbb1 {[%emt 0:01:14]} Rxa3 {[%emt 0:01:24]} 25. Rxa3 {[%emt 0:00:01]} Qxa3 {[%emt 0:00:01]} 26. Ra1 {[%emt 0:00:01]} Qb2 {[%emt 0:00:02]} 27. Qd1 {[%emt 0:00:12]} c4 {[%emt 0:00:06]} 28. Rb1 {[%emt 0:00:40]} Qa3 {[%emt 0:00:11]} 0-1

[Event "Hungarian Rapid-ch 2022"]
[Site "Ajka"]
[Date "2022.07.17"]
[Round "12.23"]
[White "Reviczki, Roland"]
[Black "Udvardi, Zalan"]
[Result "0-1"]
[ECO "B40"]
[WhiteElo "2160"]
[BlackElo "2310"]
[Annotator "ChessBase"]
[PlyCount "80"]
[EventDate "2022.07.15"]
[EventType "swiss"]
[EventCountry "HUN"]
[SourceTitle "playchess.com"]
[Source "ChessBase"]
[SourceQuality "1"]
[TimeControl "900+10"]

1. e4 {[%emt 0:00:12]} c5 {[%emt 0:00:10]} 2. Nf3 {[%emt 0:00:01]} e6 {[%emt 0:00:02]} 3. d4 {[%emt 0:00:07]} cxd4 {[%emt 0:00:01]} 4. Nxd4 {[%emt 0:00:02]} Nf6 {[%emt 0:00:00]} 5. Nc3 {[%emt 0:00:04]} Nc6 {[%emt 0:00:01]} 6. Ndb5 {[%emt 0:00:02]} Bc5 {[%emt 0:00:01]} 7. Bf4 {[%emt 0:00:05]} O-O {[%emt 0:00:02]} 8. Bc7 {[%emt 0:00:02]} Qe7 {[%emt 0:00:01]} 9. Bd6 {[%emt 0:00:03]} Bxd6 {[%emt 0:00:01]} 10. Qxd6 {[%emt 0:00:08]} Qd8 {[%emt 0:00:01]} 11. O-O-O {[%emt 0:00:08]} a6 {[%emt 0:00:01]} 12. Nd4 {[%emt 0:00:02]} Na5 {[%emt 0:00:01]} 13. Be2 {[%emt 0:01:05]} b5 {[%emt 0:00:08]} 14. Rd2 {[%emt 0:01:36]} Bb7 {[%emt 0:00:10]} 15. f3 {[%emt 0:00:03]} Rc8 {[%emt 0:00:22]} 16. Rhd1 {[%emt 0:00:07]} Ne8 {[%emt 0:00:13]} 17. Qb4 {[%emt 0:01:10]} d6 {[%emt 0:02:38]} 18. a4 {[%emt 0:00:05]} Nc4 {[%emt 0:03:59]} 19. Bxc4 {[%emt 0:01:35]} Rxc4 {[%emt 0:00:01]} 20. Qb3 {[%emt 0:00:01]} Qa5 {[%emt 0:00:30]} 21. axb5 {[%emt 0:00:38]} axb5 {[%emt 0:01:03]} 22. Ndxb5 {[%emt 0:00:26]} Rb4 {[%emt 0:00:10]} 23. Qa3 {[%emt 0:00:31]} Rxb5 {[%emt 0:00:01]} 24. Nxb5 {[%emt 0:00:06]} Qxb5 {[%emt 0:00:01]} 25. Rd3 {[%emt 0:00:56]} Bc6 {[%emt 0:01:46]} 26. b3 {[%emt 0:02:08]} f5 {[%emt 0:00:44]} 27. c4 {[%emt 0:00:31]} Qb6 {[%emt 0:00:21]} 28. exf5 {[%emt 0:00:09]} Rxf5 {[%emt 0:00:02]} 29. Qb2 {[%emt 0:01:09]} Ra5 {[%emt 0:00:54]} 30. Re1 {[%emt 0:00:44]} Qa7 {[%emt 0:00:19]} 31. Kb1 {[%emt 0:00:25]} e5 {[%emt 0:01:04]} 32. h4 {[%emt 0:05:20]} Bd7 {[%emt 0:00:18]} 33. g4 {[%emt 0:00:07]} h5 {[%emt 0:00:08]} 34. b4 {[%emt 0:00:38]} Ra4 {[%emt 0:00:01]} 35. c5 {[%emt 0:00:19]} hxg4 {[%emt 0:00:21]} 36. fxg4 {[%emt 0:00:07]} Bxg4 {[%emt 0:00:09]} 37. Qb3+ {[%emt 0:00:05]} Kh8 {[%emt 0:00:08]} 38. Rde3 {[%emt 0:00:10]} dxc5 {[%emt 0:00:23]} 39. bxc5 {[%emt 0:00:01]} Qa5 {[%emt 0:00:19]} 40. Kc1 {[%emt 0:00:24]} Ra1+ {[%emt 0:00:57]} 0-1

[Event "Hungarian Rapid-ch 2022"]
[Site "Ajka"]
[Date "2022.07.17"]
[Round "12.24"]
[White "Nemeth, Zoltan"]
[Black "Tubak, Daniel"]
[Result "0-1"]
[ECO "A46"]
[WhiteElo "2242"]
[BlackElo "2182"]
[Annotator "ChessBase"]
[PlyCount "70"]
[EventDate "2022.07.15"]
[EventType "swiss"]
[EventCountry "HUN"]
[SourceTitle "playchess.com"]
[Source "ChessBase"]
[SourceQuality "1"]
[TimeControl "900+10"]

1. d4 {[%emt 0:00:59]} Nf6 {[%emt 0:00:11]} 2. Nf3 {[%emt 0:00:02]} e6 {[%emt 0:00:03]} 3. g3 {[%emt 0:00:02]} d5 {[%emt 0:00:01]} 4. Bg2 {[%emt 0:00:01]} Be7 {[%emt 0:00:02]} 5. O-O {[%emt 0:00:02]} O-O {[%emt 0:00:01]} 6. c4 {[%emt 0:00:00]} b6 {[%emt 0:00:28]} 7. Ne5 {[%emt 0:00:36]} Bb7 {[%emt 0:00:02]} 8. Nc3 {[%emt 0:00:12]} Nbd7 {[%emt 0:00:12]} 9. Qa4 {[%emt 0:00:01]} c6 {[%emt 0:01:21]} 10. cxd5 {[%emt 0:01:28]} cxd5 {[%emt 0:00:02]} 11. Nxd7 {[%emt 0:01:05]} Qxd7 {[%emt 0:00:02]} 12. Qxd7 {[%emt 0:00:04]} Nxd7 {[%emt 0:00:01]} 13. Bf4 {[%emt 0:00:20]} Ba6 {[%emt 0:00:13]} 14. Rfc1 {[%emt 0:00:03]} Rac8 {[%emt 0:00:06]} 15. e4 {[%emt 0:02:00]} dxe4 {[%emt 0:00:10]} 16. Nxe4 {[%emt 0:00:02]} Nf6 {[%emt 0:00:50]} 17. Bd6 {[%emt 0:02:22]} Bxd6 {[%emt 0:01:19]} 18. Nxd6 {[%emt 0:00:02]} Rxc1+ {[%emt 0:00:01]} 19. Rxc1 {[%emt 0:00:02]} Rd8 {[%emt 0:00:01]} 20. Rc7 {[%emt 0:01:34]} Rxd6 {[%emt 0:00:10]} 21. Rxa7 {[%emt 0:00:01]} Bb5 {[%emt 0:00:10]} 22. Ra8+ {[%emt 0:01:03]} Be8 {[%emt 0:00:07]} 23. g4 {[%emt 0:00:14]} Kf8 {[%emt 0:00:17]} 24. g5 {[%emt 0:00:37]} Nd5 {[%emt 0:00:02]} 25. Bf1 {[%emt 0:00:17]} Ke7 {[%emt 0:00:17]} 26. a4 {[%emt 0:00:27]} Rd8 {[%emt 0:01:20]} 27. Ra7+ {[%emt 0:00:08]} Rd7 {[%emt 0:00:01]} 28. Ra8 {[%emt 0:00:02]} Rc7 {[%emt 0:00:06]} 29. a5 {[%emt 0:00:31]} bxa5 {[%emt 0:00:02]} 30. Rxa5 {[%emt 0:00:01]} Rb7 {[%emt 0:00:11]} 31. Ra2 {[%emt 0:00:14]} h6 {[%emt 0:00:47]} 32. h4 {[%emt 0:00:14]} hxg5 {[%emt 0:00:00]} 33. hxg5 {[%emt 0:00:01]} Rb4 {[%emt 0:00:33]} 34. Ra7+ {[%emt 0:00:21]} Bd7 {[%emt 0:00:01]} 35. Bd3 {[%emt 0:01:02]} g6 {[%emt 0:00:09]} 0-1